[Event "Late-Titled-Tuesday-Blitz-April-30-2024"]
[Site "Chess.com"]
[Date "2024.04.30"]
[Round "1"]
[White "rhwr"]
[Black "nabukatnezarr"]
[Result "1-0"]
[WhiteElo "2284"]
[BlackElo "2595"]
[TimeControl "180+1"]
[EndTime "14:07:01 PDT"]
[Termination "rhwr won on time"]

1. e4 {[%clk 0:02:56.9]} 1... c5 {[%clk 0:02:56.3]} 2. Be2 {[%clk 0:02:52.1]}
2... Nc6 {[%clk 0:02:53.3]} 3. f4 {[%clk 0:02:51.5]} 3... e6 {[%clk 0:02:46.6]}
4. Nf3 {[%clk 0:02:49.5]} 4... d5 {[%clk 0:02:42]} 5. d3 {[%clk 0:02:48.8]} 5...
Nf6 {[%clk 0:02:35.5]} 6. e5 {[%clk 0:02:47]} 6... Nd7 {[%clk 0:02:34.6]} 7. O-O
{[%clk 0:02:46.1]} 7... g6 {[%clk 0:02:32.3]} 8. c3 {[%clk 0:02:45.4]} 8... Be7
{[%clk 0:02:27.7]} 9. Kh1 {[%clk 0:02:39.6]} 9... h5 {[%clk 0:02:24.7]} 10. Na3
{[%clk 0:02:28.5]} 10... a6 {[%clk 0:02:18.6]} 11. Nc2 {[%clk 0:02:26.3]} 11...
Qc7 {[%clk 0:02:16.3]} 12. d4 {[%clk 0:02:24.1]} 12... b5 {[%clk 0:01:51]} 13.
Be3 {[%clk 0:02:19.1]} 13... Bb7 {[%clk 0:01:50.8]} 14. a4 {[%clk 0:02:02.1]}
14... b4 {[%clk 0:01:48.9]} 15. cxb4 {[%clk 0:02:00.2]} 15... cxb4 {[%clk
0:01:45]} 16. b3 {[%clk 0:02:00.2]} 16... O-O-O {[%clk 0:01:34.9]} 17. Rc1
{[%clk 0:01:58.5]} 17... Kb8 {[%clk 0:01:32.8]} 18. Nce1 {[%clk 0:01:52]} 18...
Qb6 {[%clk 0:01:25.2]} 19. Nd3 {[%clk 0:01:48.1]} 19... Rc8 {[%clk 0:01:01.4]}
20. Qd2 {[%clk 0:01:45.3]} 20... Na5 {[%clk 0:00:54.2]} 21. Qb2 {[%clk
0:01:44.7]} 21... Rxc1 {[%clk 0:00:49]} 22. Rxc1 {[%clk 0:01:43.8]} 22... Rc8
{[%clk 0:00:49.4]} 23. Rxc8+ {[%clk 0:01:41.7]} 23... Bxc8 {[%clk 0:00:50.3]}
24. Qc2 {[%clk 0:01:38.2]} 24... Bb7 {[%clk 0:00:42]} 25. h3 {[%clk 0:01:35.7]}
25... Qd8 {[%clk 0:00:35.7]} 26. g4 {[%clk 0:01:33.5]} 26... hxg4 {[%clk
0:00:35.2]} 27. hxg4 {[%clk 0:01:33.6]} 27... Qh8+ {[%clk 0:00:36.1]} 28. Kg2
{[%clk 0:01:33.7]} 28... f6 {[%clk 0:00:35.4]} 29. Nf2 {[%clk 0:01:22.9]} 29...
g5 {[%clk 0:00:19.9]} 30. Qg6 {[%clk 0:01:00.7]} 30... gxf4 {[%clk 0:00:18.3]}
31. Bxf4 {[%clk 0:01:00.4]} 31... fxe5 {[%clk 0:00:18.4]} 32. Nxe5 {[%clk
0:00:57.9]} 32... Kc8 {[%clk 0:00:10.6]} 33. Qxe6 {[%clk 0:00:56.8]} 33... Qe8
{[%clk 0:00:09.7]} 34. Bd1 {[%clk 0:00:47.3]} 34... Kd8 {[%clk 0:00:07.5]} 35.
Nf7+ {[%clk 0:00:44.7]} 35... Kc8 {[%clk 0:00:07]} 36. Nd6+ {[%clk 0:00:43.7]}
36... Kd8 {[%clk 0:00:02.3]} 37. Nxe8 {[%clk 0:00:43.6]} 37... Kxe8 {[%clk
0:00:03.2]} 38. g5 {[%clk 0:00:41.9]} 38... Nf8 {[%clk 0:00:03.8]} 39. Bh5+
{[%clk 0:00:39.2]} 39... Kd8 {[%clk 0:00:03.9]} 40. Qb6+ {[%clk 0:00:38.7]} 1-0

[Event "Late-Titled-Tuesday-Blitz-April-30-2024"]
[Site "Chess.com"]
[Date "2024.04.30"]
[Round "1"]
[White "GalaxyRoman"]
[Black "SergioMoralesG"]
[Result "0-1"]
[WhiteElo "2767"]
[BlackElo "2453"]
[TimeControl "180+1"]
[EndTime "14:07:02 PDT"]
[Termination "SergioMoralesG won by checkmate"]

1. e4 {[%clk 0:03:00.9]} 1... c5 {[%clk 0:03:00.3]} 2. Nc3 {[%clk 0:03:00]} 2...
Nc6 {[%clk 0:02:59.8]} 3. f4 {[%clk 0:02:56.3]} 3... g6 {[%clk 0:02:58.7]} 4.
Nf3 {[%clk 0:02:56.5]} 4... Bg7 {[%clk 0:02:59.2]} 5. Bb5 {[%clk 0:02:56.8]}
5... Nd4 {[%clk 0:02:58.4]} 6. O-O {[%clk 0:02:57.2]} 6... a6 {[%clk 0:02:51.6]}
7. Bd3 {[%clk 0:02:56.4]} 7... d6 {[%clk 0:02:49.1]} 8. Nxd4 {[%clk 0:02:56.5]}
8... cxd4 {[%clk 0:02:48.7]} 9. Ne2 {[%clk 0:02:56.9]} 9... Qb6 {[%clk
0:02:43.3]} 10. Kh1 {[%clk 0:02:56.3]} 10... Nf6 {[%clk 0:02:41.6]} 11. Qe1
{[%clk 0:02:54.7]} 11... O-O {[%clk 0:02:40.8]} 12. h3 {[%clk 0:02:52.2]} 12...
e5 {[%clk 0:02:35.1]} 13. Qf2 {[%clk 0:02:52]} 13... Bd7 {[%clk 0:02:26.9]} 14.
a4 {[%clk 0:02:50.7]} 14... Bc6 {[%clk 0:02:13.8]} 15. Ng3 {[%clk 0:02:48.5]}
15... exf4 {[%clk 0:02:05.7]} 16. Qxf4 {[%clk 0:02:47.3]} 16... Nd7 {[%clk
0:02:05.7]} 17. b3 {[%clk 0:02:45.4]} 17... Ne5 {[%clk 0:02:02.3]} 18. Rb1
{[%clk 0:02:37.4]} 18... Nxd3 {[%clk 0:01:54.5]} 19. cxd3 {[%clk 0:02:38.3]}
19... Bxa4 {[%clk 0:01:54.9]} 20. Ba3 {[%clk 0:02:36.9]} 20... Bb5 {[%clk
0:01:50.6]} 21. Bxd6 {[%clk 0:02:34.3]} 21... Bxd3 {[%clk 0:01:48.4]} 22. Bxf8
{[%clk 0:02:18.6]} 22... Rxf8 {[%clk 0:01:48.2]} 23. Qf3 {[%clk 0:02:15.1]}
23... Bxf1 {[%clk 0:01:44.7]} 24. Rxf1 {[%clk 0:02:14.5]} 24... Be5 {[%clk
0:01:36]} 25. Ne2 {[%clk 0:02:13.9]} 25... Qe6 {[%clk 0:01:30.7]} 26. Nc1 {[%clk
0:02:10.1]} 26... Rc8 {[%clk 0:01:28.3]} 27. Nd3 {[%clk 0:02:09.6]} 27... Bg7
{[%clk 0:01:23.4]} 28. Nf4 {[%clk 0:02:09.4]} 28... Qf6 {[%clk 0:01:20.2]} 29.
Qd3 {[%clk 0:02:04.3]} 29... Qc6 {[%clk 0:01:10.1]} 30. Nd5 {[%clk 0:02:03.2]}
30... Qe6 {[%clk 0:00:58.4]} 31. Qf3 {[%clk 0:01:59.2]} 31... Be5 {[%clk
0:00:37.9]} 32. Qd3 {[%clk 0:01:38.9]} 32... Kg7 {[%clk 0:00:36.6]} 33. Qf3
{[%clk 0:01:38.7]} 33... Bd6 {[%clk 0:00:34.7]} 34. b4 {[%clk 0:01:29.2]} 34...
Re8 {[%clk 0:00:34.3]} 35. d3 {[%clk 0:01:27.2]} 35... Rf8 {[%clk 0:00:32.8]}
36. Kg1 {[%clk 0:01:22.5]} 36... Qe5 {[%clk 0:00:29]} 37. Rf2 {[%clk 0:00:43.2]}
37... f5 {[%clk 0:00:28.7]} 38. Qe2 {[%clk 0:00:13.9]} 38... Qh2+ {[%clk
0:00:21.4]} 39. Kf1 {[%clk 0:00:12.9]} 39... Qh1# {[%clk 0:00:22.3]} 0-1

[Event "Late-Titled-Tuesday-Blitz-April-30-2024"]
[Site "Chess.com"]
[Date "2024.04.30"]
[Round "1"]
[White "FredddieCroderg"]
[Black "Rodalquilar"]
[Result "0-1"]
[WhiteElo "2410"]
[BlackElo "2707"]
[TimeControl "180+1"]
[EndTime "14:07:02 PDT"]
[Termination "Rodalquilar won on time"]

1. d4 {[%clk 0:02:38.4]} 1... d5 {[%clk 0:02:55.4]} 2. c4 {[%clk 0:02:38.1]}
2... dxc4 {[%clk 0:02:55.6]} 3. e3 {[%clk 0:02:37.5]} 3... Nf6 {[%clk
0:02:55.2]} 4. Bxc4 {[%clk 0:02:37.2]} 4... g6 {[%clk 0:02:55.7]} 5. Nf3 {[%clk
0:02:37]} 5... Bg7 {[%clk 0:02:55.7]} 6. O-O {[%clk 0:02:37.1]} 6... O-O {[%clk
0:02:55.9]} 7. Nc3 {[%clk 0:02:37]} 7... Ne8 {[%clk 0:02:56.1]} 8. Bd2 {[%clk
0:02:33]} 8... Nd6 {[%clk 0:02:55.9]} 9. Bb3 {[%clk 0:02:32.2]} 9... b5 {[%clk
0:02:53.6]} 10. Rc1 {[%clk 0:02:32.3]} 10... Bb7 {[%clk 0:02:52.2]} 11. Bc2
{[%clk 0:02:21.8]} 11... Nd7 {[%clk 0:02:47.6]} 12. Re1 {[%clk 0:02:19.1]} 12...
c5 {[%clk 0:02:45.4]} 13. dxc5 {[%clk 0:02:15.7]} 13... Nxc5 {[%clk 0:02:46.3]}
14. Qe2 {[%clk 0:02:05.6]} 14... b4 {[%clk 0:02:16.8]} 15. Na4 {[%clk
0:02:04.5]} 15... Ba6 {[%clk 0:02:17.3]} 16. Qd1 {[%clk 0:02:04.2]} 16... Nxa4
{[%clk 0:02:17.5]} 17. Bxa4 {[%clk 0:02:03.2]} 17... Bxb2 {[%clk 0:02:14.4]} 18.
Rc2 {[%clk 0:01:54.6]} 18... Ba3 {[%clk 0:02:02.8]} 19. Bb3 {[%clk 0:01:40]}
19... Bd3 {[%clk 0:01:57.4]} 20. Rc5 {[%clk 0:01:30.5]} 20... a5 {[%clk
0:01:52.9]} 21. Nd4 {[%clk 0:01:26.9]} 21... Qb6 {[%clk 0:01:23.8]} 22. Rc6
{[%clk 0:01:17.7]} 22... Qb7 {[%clk 0:01:24.1]} 23. Bd5 {[%clk 0:01:05.1]} 23...
Qd7 {[%clk 0:01:18.8]} 24. Qf3 {[%clk 0:00:57.9]} 24... Rac8 {[%clk 0:01:06.9]}
25. e4 {[%clk 0:00:44.6]} 25... Bc4 {[%clk 0:00:59.3]} 26. Bxc4 {[%clk
0:00:20.4]} 26... Nxc4 {[%clk 0:00:59.1]} 27. Rxc8 {[%clk 0:00:17.6]} 27... Rxc8
{[%clk 0:00:59]} 28. Bh6 {[%clk 0:00:15.3]} 28... Qxd4 {[%clk 0:00:58]} 29. e5
{[%clk 0:00:14.3]} 29... Nxe5 {[%clk 0:00:43.7]} 30. Qb7 {[%clk 0:00:13.6]}
30... Re8 {[%clk 0:00:43.8]} 31. Qb5 {[%clk 0:00:13.1]} 31... Nd7 {[%clk
0:00:37.4]} 32. Be3 {[%clk 0:00:12.8]} 32... Qd6 {[%clk 0:00:35.1]} 33. Qxa5
{[%clk 0:00:07.9]} 33... Bb2 {[%clk 0:00:34.4]} 34. h4 {[%clk 0:00:05]} 34...
Bc3 {[%clk 0:00:34.5]} 35. Rf1 {[%clk 0:00:04.1]} 35... Nf6 {[%clk 0:00:34.7]}
36. Qb5 {[%clk 0:00:02.9]} 36... Qd5 {[%clk 0:00:34.6]} 37. Qb7 {[%clk
0:00:02.2]} 37... Qxb7 {[%clk 0:00:34.3]} 0-1

[Event "Late-Titled-Tuesday-Blitz-April-30-2024"]
[Site "Chess.com"]
[Date "2024.04.30"]
[Round "1"]
[White "Heliosis11"]
[Black "Sanyura"]
[Result "1-0"]
[WhiteElo "2396"]
[BlackElo "2660"]
[TimeControl "180+1"]
[EndTime "14:07:02 PDT"]
[Termination "Heliosis11 won by resignation"]

1. e4 {[%clk 0:02:59.5]} 1... c5 {[%clk 0:02:57.4]} 2. Nf3 {[%clk 0:02:57.9]}
2... e6 {[%clk 0:02:57.4]} 3. Nc3 {[%clk 0:02:57.7]} 3... Nc6 {[%clk 0:02:57]}
4. d4 {[%clk 0:02:58.2]} 4... cxd4 {[%clk 0:02:57.2]} 5. Nxd4 {[%clk 0:02:59.1]}
5... Nf6 {[%clk 0:02:57.6]} 6. Nxc6 {[%clk 0:02:58.7]} 6... bxc6 {[%clk
0:02:57.8]} 7. e5 {[%clk 0:02:59.4]} 7... Nd5 {[%clk 0:02:57.8]} 8. Ne4 {[%clk
0:03:00.1]} 8... Qc7 {[%clk 0:02:58]} 9. f4 {[%clk 0:03:00.7]} 9... Qb6 {[%clk
0:02:58.5]} 10. c4 {[%clk 0:02:49.9]} 10... Bb4+ {[%clk 0:02:58.2]} 11. Ke2
{[%clk 0:02:47.5]} 11... Ba6 {[%clk 0:02:58.3]} 12. Kf3 {[%clk 0:02:38.9]} 12...
f5 {[%clk 0:02:58.3]} 13. exf6 {[%clk 0:02:39.1]} 13... Nxf6 {[%clk 0:02:57.9]}
14. Be3 {[%clk 0:02:36.7]} 14... Qd8 {[%clk 0:02:55.7]} 15. Nd6+ {[%clk
0:02:29.7]} 15... Bxd6 {[%clk 0:02:55.8]} 16. Qxd6 {[%clk 0:02:30.5]} 16... Bb7
{[%clk 0:02:56]} 17. Bc5 {[%clk 0:02:26.6]} 17... Kf7 {[%clk 0:02:42]} 18. Rd1
{[%clk 0:02:09.3]} 18... Re8 {[%clk 0:02:35.8]} 19. Bd3 {[%clk 0:02:01.1]} 19...
Qb8 {[%clk 0:02:10.6]} 20. Bc2 {[%clk 0:01:55.8]} 20... Qxd6 {[%clk 0:02:04.2]}
21. Rxd6 {[%clk 0:01:56.7]} 21... e5 {[%clk 0:01:59]} 22. Rhd1 {[%clk
0:01:50.1]} 22... exf4 {[%clk 0:01:26.7]} 23. Rxd7+ {[%clk 0:01:44.9]} 23...
Nxd7 {[%clk 0:01:18.4]} 24. Rxd7+ {[%clk 0:01:45.7]} 24... Ke6 {[%clk 0:01:19]}
25. Rxb7 {[%clk 0:01:45.7]} 25... g5 {[%clk 0:01:17]} 26. Be4 {[%clk 0:01:34.6]}
26... Rac8 {[%clk 0:00:22.3]} 27. Rxh7 {[%clk 0:01:31.6]} 27... Ke5 {[%clk
0:00:22]} 28. Rg7 {[%clk 0:01:19.7]} 28... Rg8 {[%clk 0:00:18]} 29. Re7+ {[%clk
0:01:16.9]} 29... Kf6 {[%clk 0:00:17.6]} 30. h3 {[%clk 0:01:16.6]} 30... Rcd8
{[%clk 0:00:14.1]} 31. Rxa7 {[%clk 0:01:13.7]} 31... Rd2 {[%clk 0:00:13]} 32.
Rc7 {[%clk 0:01:06]} 32... Rgd8 {[%clk 0:00:09.7]} 33. Rxc6+ {[%clk 0:01:03.9]}
33... Ke5 {[%clk 0:00:09.7]} 34. Rg6 {[%clk 0:01:00.1]} 34... Rxb2 {[%clk
0:00:05.6]} 35. Rxg5+ {[%clk 0:00:59.3]} 35... Kf6 {[%clk 0:00:06]} 36. Rh5
{[%clk 0:00:54.9]} 36... Rxa2 {[%clk 0:00:05.1]} 37. Bd5 {[%clk 0:00:50.9]}
37... Re8 {[%clk 0:00:02]} 38. Bd4+ {[%clk 0:00:50.1]} 38... Kg6 {[%clk
0:00:01.9]} 39. Re5 {[%clk 0:00:49.6]} 39... Ra3+ {[%clk 0:00:01.8]} 40. Kxf4
{[%clk 0:00:48.1]} 40... Rf8+ {[%clk 0:00:02.3]} 41. Kg4 {[%clk 0:00:47]} 41...
Ra2 {[%clk 0:00:02]} 42. Re6+ {[%clk 0:00:46.8]} 42... Kh7 {[%clk 0:00:01.7]}
43. Re7+ {[%clk 0:00:47.1]} 43... Kg6 {[%clk 0:00:01.5]} 44. Be4+ {[%clk
0:00:42.6]} 1-0

[Event "Late-Titled-Tuesday-Blitz-April-30-2024"]
[Site "Chess.com"]
[Date "2024.04.30"]
[Round "1"]
[White "Langua_Chess"]
[Black "AlexeiShirov"]
[Result "0-1"]
[WhiteElo "2448"]
[BlackElo "2811"]
[TimeControl "180+1"]
[EndTime "14:07:04 PDT"]
[Termination "AlexeiShirov won by checkmate"]

1. Nf3 {[%clk 0:02:59.8]} 1... d5 {[%clk 0:02:58]} 2. g3 {[%clk 0:02:59.3]} 2...
Bg4 {[%clk 0:02:55.5]} 3. Bg2 {[%clk 0:02:59.5]} 3... Nd7 {[%clk 0:02:55.2]} 4.
d4 {[%clk 0:02:58.6]} 4... e6 {[%clk 0:02:44.7]} 5. O-O {[%clk 0:02:58.5]} 5...
Bd6 {[%clk 0:02:42.5]} 6. c4 {[%clk 0:02:57.2]} 6... c6 {[%clk 0:02:41.4]} 7. b3
{[%clk 0:02:54.4]} 7... Ngf6 {[%clk 0:02:36.1]} 8. Bb2 {[%clk 0:02:53.4]} 8...
Ne4 {[%clk 0:02:32.4]} 9. Nbd2 {[%clk 0:02:52.4]} 9... f5 {[%clk 0:02:31.3]} 10.
Ne1 {[%clk 0:02:45.8]} 10... O-O {[%clk 0:02:25.5]} 11. Nd3 {[%clk 0:02:37.7]}
11... Bh5 {[%clk 0:02:14.1]} 12. Nf4 {[%clk 0:02:34.2]} 12... Bxf4 {[%clk
0:02:11.8]} 13. gxf4 {[%clk 0:02:34.2]} 13... Qh4 {[%clk 0:02:11.6]} 14. f3
{[%clk 0:02:22.5]} 14... Nef6 {[%clk 0:01:44.6]} 15. e3 {[%clk 0:02:18.9]} 15...
g5 {[%clk 0:01:44.2]} 16. fxg5 {[%clk 0:02:13.8]} 16... Qxg5 {[%clk 0:01:43.3]}
17. Qe1 {[%clk 0:02:11.7]} 17... Kh8 {[%clk 0:01:40.4]} 18. Kh1 {[%clk
0:01:59.9]} 18... Rg8 {[%clk 0:01:38]} 19. Rg1 {[%clk 0:02:00.3]} 19... Rg6
{[%clk 0:01:37.2]} 20. Bh3 {[%clk 0:01:51.7]} 20... Qh6 {[%clk 0:01:35.8]} 21.
Rxg6 {[%clk 0:01:47.7]} 21... hxg6 {[%clk 0:01:34.6]} 22. Qf2 {[%clk 0:01:34.2]}
22... g5 {[%clk 0:01:33]} 23. Bg2 {[%clk 0:01:30.7]} 23... g4 {[%clk 0:01:30.5]}
24. Re1 {[%clk 0:01:26.3]} 24... Rg8 {[%clk 0:01:25.8]} 25. Bc1 {[%clk
0:01:05.3]} 25... g3 {[%clk 0:01:24.2]} 26. Qg1 {[%clk 0:00:54.2]} 26... Bf7
{[%clk 0:01:05.9]} 27. Nf1 {[%clk 0:00:52.2]} 27... Nh5 {[%clk 0:00:59.8]} 28.
e4 {[%clk 0:00:47.9]} 28... f4 {[%clk 0:00:55.6]} 29. exd5 {[%clk 0:00:46.6]}
29... cxd5 {[%clk 0:00:54.2]} 30. cxd5 {[%clk 0:00:46.6]} 30... exd5 {[%clk
0:00:48.5]} 31. Re7 {[%clk 0:00:47.5]} 31... Be6 {[%clk 0:00:45.4]} 32. Ba3
{[%clk 0:00:17.6]} 32... Ng7 {[%clk 0:00:36]} 33. Bd6 {[%clk 0:00:09.4]} 33...
Rc8 {[%clk 0:00:20.5]} 34. Nd2 {[%clk 0:00:06.4]} 34... Rc2 {[%clk 0:00:19.4]}
35. Qd1 {[%clk 0:00:03.2]} 35... Qxh2# {[%clk 0:00:17.4]} 0-1

[Event "Late-Titled-Tuesday-Blitz-April-30-2024"]
[Site "Chess.com"]
[Date "2024.04.30"]
[Round "1"]
[White "lucasran"]
[Black "TheMagician"]
[Result "1-0"]
[WhiteElo "2557"]
[BlackElo "2121"]
[TimeControl "180+1"]
[EndTime "14:07:04 PDT"]
[Termination "lucasran won on time"]

1. c4 {[%clk 0:02:58]} 1... Nf6 {[%clk 0:02:58.9]} 2. Nf3 {[%clk 0:02:56.9]}
2... d6 {[%clk 0:02:58.7]} 3. d4 {[%clk 0:02:56.7]} 3... g6 {[%clk 0:02:58.8]}
4. Nc3 {[%clk 0:02:57.2]} 4... Bg7 {[%clk 0:02:58.7]} 5. Bg5 {[%clk 0:02:57.9]}
5... h6 {[%clk 0:02:58.3]} 6. Bh4 {[%clk 0:02:58.3]} 6... Bg4 {[%clk 0:02:56.3]}
7. e3 {[%clk 0:02:58.4]} 7... Nbd7 {[%clk 0:02:55.4]} 8. h3 {[%clk 0:02:57.8]}
8... Bxf3 {[%clk 0:02:53.5]} 9. Qxf3 {[%clk 0:02:58.7]} 9... c6 {[%clk
0:02:51.7]} 10. Bd3 {[%clk 0:02:49.7]} 10... e5 {[%clk 0:02:31.7]} 11. O-O
{[%clk 0:02:49.6]} 11... O-O {[%clk 0:02:27.3]} 12. Rab1 {[%clk 0:02:39.3]}
12... Qb6 {[%clk 0:02:23.7]} 13. dxe5 {[%clk 0:02:06.7]} 13... dxe5 {[%clk
0:02:07.7]} 14. Rfd1 {[%clk 0:02:04.7]} 14... a5 {[%clk 0:01:58.9]} 15. Na4
{[%clk 0:01:54.3]} 15... Qb4 {[%clk 0:01:48.4]} 16. b3 {[%clk 0:01:54.4]} 16...
Rfe8 {[%clk 0:01:40.7]} 17. Be4 {[%clk 0:01:26.9]} 17... Re6 {[%clk 0:01:25.4]}
18. Bc2 {[%clk 0:01:16.5]} 18... Qa3 {[%clk 0:01:11.3]} 19. Nc3 {[%clk
0:01:15.1]} 19... Qb4 {[%clk 0:01:07.5]} 20. e4 {[%clk 0:01:11.8]} 20... Nc5
{[%clk 0:00:52.2]} 21. Qe3 {[%clk 0:01:11.9]} 21... Na6 {[%clk 0:00:46]} 22. Kh1
{[%clk 0:01:11.1]} 22... g5 {[%clk 0:00:44.4]} 23. Bg3 {[%clk 0:01:11.2]} 23...
Qc5 {[%clk 0:00:43]} 24. Qe2 {[%clk 0:01:11.7]} 24... Ree8 {[%clk 0:00:36.9]}
25. Na4 {[%clk 0:01:10.9]} 25... Qe7 {[%clk 0:00:32]} 26. Rd2 {[%clk 0:00:58.7]}
26... Rad8 {[%clk 0:00:24.9]} 27. Rbd1 {[%clk 0:00:58.4]} 27... Rxd2 {[%clk
0:00:24.4]} 28. Qxd2 {[%clk 0:00:59.3]} 28... Qc7 {[%clk 0:00:18.3]} 29. Qe2
{[%clk 0:00:41.4]} 29... b6 {[%clk 0:00:13.6]} 30. Rd2 {[%clk 0:00:41.4]} 30...
Nd7 {[%clk 0:00:06.5]} 31. Bd1 {[%clk 0:00:41.3]} 31... Ndc5 {[%clk 0:00:06.3]}
32. Nc3 {[%clk 0:00:33.5]} 32... Ne6 {[%clk 0:00:06.2]} 33. Qe1 {[%clk
0:00:34.1]} 33... Nd4 {[%clk 0:00:04]} 34. Bg4 {[%clk 0:00:34.7]} 34... Qe7
{[%clk 0:00:00.1]} 35. Qd1 {[%clk 0:00:35.2]} 1-0

[Event "Late-Titled-Tuesday-Blitz-April-30-2024"]
[Site "Chess.com"]
[Date "2024.04.30"]
[Round "1"]
[White "Payyappat"]
[Black "GroovyKettle"]
[Result "0-1"]
[WhiteElo "2501"]
[BlackElo "2950"]
[TimeControl "180+1"]
[EndTime "14:07:08 PDT"]
[Termination "GroovyKettle won by resignation"]

1. e4 {[%clk 0:03:00.2]} 1... c6 {[%clk 0:02:54.8]} 2. d4 {[%clk 0:02:59.3]}
2... d5 {[%clk 0:02:54.7]} 3. exd5 {[%clk 0:03:00.2]} 3... cxd5 {[%clk
0:02:54.7]} 4. c4 {[%clk 0:03:00.6]} 4... Nf6 {[%clk 0:02:54.5]} 5. Nc3 {[%clk
0:02:59.7]} 5... g6 {[%clk 0:02:54.2]} 6. Nf3 {[%clk 0:02:59.1]} 6... Bg7 {[%clk
0:02:54.2]} 7. Bg5 {[%clk 0:02:56.5]} 7... Be6 {[%clk 0:02:53]} 8. c5 {[%clk
0:02:55.9]} 8... O-O {[%clk 0:02:52.7]} 9. Ne5 {[%clk 0:02:53.9]} 9... Nfd7
{[%clk 0:02:51.3]} 10. Nf3 {[%clk 0:02:46.4]} 10... Nc6 {[%clk 0:02:47.4]} 11.
Bb5 {[%clk 0:02:43.6]} 11... Bg4 {[%clk 0:02:44.8]} 12. Bxc6 {[%clk 0:02:16.3]}
12... bxc6 {[%clk 0:02:43.5]} 13. Be3 {[%clk 0:02:14.8]} 13... e5 {[%clk
0:02:43.1]} 14. Ne2 {[%clk 0:02:08.3]} 14... Bxf3 {[%clk 0:02:22.9]} 15. gxf3
{[%clk 0:02:09.2]} 15... Qh4 {[%clk 0:02:21.6]} 16. Qd3 {[%clk 0:01:55]} 16...
Rab8 {[%clk 0:02:20.9]} 17. O-O-O {[%clk 0:01:52.4]} 17... exd4 {[%clk 0:02:12]}
18. Bxd4 {[%clk 0:01:48.4]} 18... Nxc5 {[%clk 0:01:51.5]} 19. Bxc5 {[%clk
0:01:14.1]} 19... Bxb2+ {[%clk 0:01:52.4]} 20. Kd2 {[%clk 0:01:13.6]} 20... Rfe8
{[%clk 0:01:52.5]} 21. Rb1 {[%clk 0:01:10.6]} 21... Rb5 {[%clk 0:01:38.7]} 22.
Qc2 {[%clk 0:00:56.8]} 22... d4 {[%clk 0:01:14.2]} 23. Rxb2 {[%clk 0:00:15.2]}
23... Qg5+ {[%clk 0:00:59.3]} 24. f4 {[%clk 0:00:14.5]} 24... Rxb2 {[%clk
0:00:59.3]} 25. fxg5 {[%clk 0:00:13.6]} 25... Rxe2+ {[%clk 0:00:58.9]} 26. Kxe2
{[%clk 0:00:13.1]} 26... Rxc2+ {[%clk 0:00:59.5]} 27. Kd3 {[%clk 0:00:13.8]}
27... Rxc5 {[%clk 0:01:00.4]} 28. Rb1 {[%clk 0:00:12.2]} 28... Rxg5 {[%clk
0:00:59.1]} 29. Kxd4 {[%clk 0:00:11.3]} 29... Ra5 {[%clk 0:00:59.2]} 30. Rb2
{[%clk 0:00:10.5]} 30... Kg7 {[%clk 0:00:59.7]} 31. Rc2 {[%clk 0:00:11]} 31...
g5 {[%clk 0:00:56.9]} 32. Rc5 {[%clk 0:00:09.8]} 32... Rxa2 {[%clk 0:00:55.6]}
33. Rxg5+ {[%clk 0:00:09.8]} 33... Kf6 {[%clk 0:00:56.1]} 34. Rh5 {[%clk
0:00:09.5]} 34... Kg6 {[%clk 0:00:54.3]} 35. Rc5 {[%clk 0:00:08.8]} 35... Rxf2
{[%clk 0:00:54.4]} 36. Rxc6+ {[%clk 0:00:09.4]} 36... f6 {[%clk 0:00:54.6]} 37.
Ra6 {[%clk 0:00:09.5]} 37... Rxh2 {[%clk 0:00:54.9]} 38. Ke4 {[%clk 0:00:08.8]}
38... Re2+ {[%clk 0:00:54.8]} 39. Kf4 {[%clk 0:00:09.1]} 39... Re7 {[%clk
0:00:55.7]} 40. Kg4 {[%clk 0:00:09.2]} 40... h5+ {[%clk 0:00:55.5]} 41. Kh4
{[%clk 0:00:09.7]} 41... Kf5 {[%clk 0:00:52.1]} 42. Ra5+ {[%clk 0:00:09.5]}
42... Kf4 {[%clk 0:00:50.7]} 43. Kxh5 {[%clk 0:00:08.9]} 43... f5 {[%clk
0:00:50.5]} 44. Kg6 {[%clk 0:00:09.1]} 44... Re6+ {[%clk 0:00:49.7]} 45. Kf7
{[%clk 0:00:09]} 45... Rb6 {[%clk 0:00:48.7]} 46. Rxa7 {[%clk 0:00:08.5]} 46...
Kg4 {[%clk 0:00:48.9]} 47. Ra1 {[%clk 0:00:04.7]} 47... f4 {[%clk 0:00:48.7]}
48. Rg1+ {[%clk 0:00:05.3]} 48... Kf3 {[%clk 0:00:48.8]} 49. Rf1+ {[%clk
0:00:05.9]} 49... Kg3 {[%clk 0:00:49.1]} 50. Rg1+ {[%clk 0:00:06.3]} 50... Kf2
{[%clk 0:00:49.2]} 0-1